bitfinex-derivatives/quotes_ETHF0:USTF0_20250923
["timestamp","ask_amount","ask_price","bid_price","bid_amount"]
[1758591552599,1.44738102,4180.3,4180.2,0.4609]
[1758591552997,1.44738102,4180.3,4180.2,0.2189]
[1758591553303,1.44738102,4180.3,4180.2,0.4609]
[1758591553498,1.01717102,4180.3,4180.2,0.4609]
[1758591554105,0.59047102,4180.3,4180.2,0.8407]
[1758591554307,0.79757102,4180.3,4180.2,0.8407]
[1758591558013,1.00437102,4180.3,4180.2,0.6844]
[1758591560515,1.00437102,4180.3,4180.2,0.4609]
[1758591561612,1.00437102,4180.3,4180.2,0.4346]
[1758591561813,1.00437102,4180.3,4180.2,0.6766]
[1758591563515,1.00437102,4180.3,4180.2,0.242]
[1758591563719,1.00437102,4180.3,4180.2,0.4613]
[1758591564217,1.00437102,4180.3,4180.2,0.8335]
[1758591564218,0.59047102,4180.3,4180.2,0.8335]
[1758591564910,0.59047102,4180.3,4180.2,41.6335]
[1758591565810,0.59047102,4180.3,4180.2,42.56871818]
[1758591566117,0.59047102,4180.3,4180.2,41.042]
[1758591567312,0.5895812,4180.3,4180.2,42.37571818]
[1758591569417,0.5895812,4180.3,4180.2,42.13371818]
[1758591569610,0.5895812,4180.3,4180.2,42.37571818]
[1758591570211,0.5895812,4180.3,4180.2,41.042]
[1758591570413,0.5895812,4180.3,4179.4,0.1565]
[1758591570414,0.2192,4179.5,4179.4,0.63779]
[1758591570618,1.1238812,4179.5,4179.4,0.87979]
[1758591572320,1.1238812,4179.5,4179.4,1.23889]
[1758591572516,0.9083812,4179.5,4179.4,1.23889]
[1758591572720,0.3053,4179.8,4179.7,0.43027]
[1758591572916,0.78634372,4179.8,4179.7,2.41598818]
[1758591573222,0.78634372,4179.8,4179.7,2.57258818]
[1758591573415,0.56714372,4179.8,4179.7,2.57258818]
[1758591573824,0.26184372,4179.8,4179.7,2.57258818]
[1758591574326,0.56714372,4179.8,4179.7,2.57258818]
[1758591575024,0.56714372,4179.8,4179.7,43.37258818]
[1758591576025,0.26184372,4179.8,4179.7,46.58038818]
[1758591576818,0.56714372,4179.8,4179.7,46.58038818]
[1758591577225,0.26184372,4179.8,4179.7,46.58038818]
[1758591577826,0.56714372,4179.8,4179.7,46.58038818]
[1758591579128,0.26184372,4179.8,4179.7,46.58038818]
[1758591579827,0.56714372,4179.8,4179.7,41.21]
[1758591580128,0.56714372,4179.8,4179.7,41.452]
[1758591584526,0.56714372,4179.8,4179.7,42.60523937]
[1758591587725,0.56714372,4179.8,4179.7,42.76183937]
[1758591587933,0.56714372,4179.8,4179.7,45.96963937]
[1758591589125,0.26184372,4179.8,4179.7,45.96963937]
[1758591589327,0.73554,4180.0,4179.9,0.5666]
[1758591589632,0.57207514,4180.0,4179.9,0.8086]
[1758591589835,0.26677514,4180.0,4179.9,0.8086]
[1758591590933,0.57207514,4180.0,4179.9,0.8086]
[1758591593427,0.572175,4180.0,4179.9,0.8086]
[1758591597333,0.913375,4180.0,4179.9,0.8086]
[1758591597537,0.91338789,4180.0,4179.9,0.8086]
[1758591600138,0.91338987,4180.0,4179.9,0.8086]
[1758591600840,0.91339874,4180.0,4179.9,0.8086]
[1758591602937,0.57219874,4180.0,4179.9,0.8086]
[1758591603143,0.3296,4180.3,4180.2,1.00672]
[1758591603340,0.5343,4180.3,4180.2,2.40195937]
[1758591604146,0.3296,4180.3,4180.2,3.55519874]
[1758591604345,0.4531,4180.5,4180.4,1.0067]
[1758591604543,0.4531,4180.5,4180.4,1.2487]
[1758591605043,0.6578,4180.5,4180.4,1.2487]
[1758591605640,0.8806,4180.5,4180.4,2.24533937]
[1758591605841,1.56039398,4180.5,4180.4,0.242]
[1758591606245,5.56039398,4180.5,4180.4,0.242]
[1758591606747,5.99058398,4180.5,4180.4,0.242]
[1758591608347,0.5343,4179.8,4179.7,44.0078]
[1758591608650,0.5343,4179.8,4179.7,44.2498]
[1758591609358,0.5343,4179.8,4179.7,44.68007]
[1758591609543,0.5343,4179.8,4179.7,45.83330937]
[1758591609739,1.35793937,4179.8,4178.9,0.1566]
[1758591610046,0.2047,4178.3,4178.2,0.2018]
[1758591610251,0.7571,4178.3,4178.2,42.15503937]
[1758591610639,0.7571,4178.3,4178.2,42.39703937]
[1758591614340,0.7571,4178.3,4178.2,42.15503937]
[1758591614545,0.7571,4178.3,4178.2,42.39703937]
[1758591615051,1.01356142,4178.3,4178.2,42.39703937]
[1758591615654,1.01356142,4178.3,4178.2,1.59703937]
[1758591617054,1.01339627,4178.3,4178.2,1.35503937]
[1758591617257,1.01339627,4178.3,4178.2,1.59703937]
[1758591618155,1.44381627,4178.3,4178.2,0.242]
[1758591618356,1.44381627,4178.3,4178.2,1.39523937]
[1758591620559,1.44381627,4178.3,4178.2,0.242]
[1758591621459,1.44381627,4178.3,4178.2,0.4474]
[1758591624265,1.44381627,4178.3,4178.2,1.60063937]
[1758591626168,0.5533,4178.0,4177.9,0.02393576]
[1758591626367,0.7381,4177.3,4177.2,0.21760903]
[1758591626573,0.7381,4177.3,4177.2,0.45960903]
[1758591626764,0.7381,4177.3,4177.2,41.25960903]
[1758591627262,0.99399272,4177.3,4177.2,0.25420903]
[1758591629365,0.99399272,4177.3,4174.9,1.07692]
[1758591629366,0.5533,4176.5,4174.9,1.07692]
[1758591629566,0.8636,4176.0,4175.9,1.57663937]
[1758591629766,0.4278,4175.7,4175.6,0.2054]
[1758591630069,0.7381,4175.2,4174.5,3.2078]
[1758591630365,0.7381,4175.2,4173.8,0.1569]
[1758591630366,0.5271,4174.1,4174.0,3.8742]
[1758591630564,0.5271,4174.1,4174.0,44.6742]
[1758591631472,0.5271,4174.1,4174.0,45.82743937]
[1758591631672,0.3103,4174.1,4174.0,44.832]
[1758591631966,0.3103,4174.1,4174.0,45.98523937]
[1758591636561,0.1255,4174.5,4174.0,45.98523937]
[1758591636766,0.2226,4174.9,4174.8,0.4292]
[1758591636966,0.99635117,4174.9,4174.8,1.82443937]
[1758591637667,0.8612,4174.5,4174.4,0.4292]
[1758591637865,1.12125117,4174.5,4174.4,1.82543937]
[1758591638067,0.91195117,4174.5,4174.4,1.98323937]
[1758591638275,0.3044,4174.9,4174.8,0.4292]
[1758591638471,0.26009267,4174.9,4174.8,3.56725874]
[1758591638676,0.56449267,4174.9,4174.8,1.98323937]
[1758591638976,0.78709267,4174.9,4174.8,1.82543937]
[1758591639275,0.78710918,4174.9,4174.8,42.62543937]
[1758591639866,0.26010918,4174.9,4174.8,43.93647874]
[1758591640165,3.2078,4175.2,4175.1,1.01774]
[1758591640366,3.2078,4175.2,4175.1,2.41397937]
[1758591641072,3.2078,4175.2,4175.1,43.21397937]
[1758591642875,0.1255,4176.0,4175.8,1.01767]
[1758591642876,3.5122,4175.9,4175.8,1.01767]
[1758591643066,3.5122,4175.9,4175.8,1.26167]
[1758591643268,3.7348,4175.9,4175.8,1.26167]
[1758591643469,0.527,4175.9,4175.8,1.26167]
[1758591644069,0.527,4175.9,4175.8,0.6732]
[1758591644276,0.73507,4175.8,4175.4,3.2078]
[1758591644467,0.43071,4175.4,4175.1,40.8]
[1758591644674,0.8612,4175.5,4175.1,40.8]
[1758591644675,0.7363,4175.3,4175.2,0.244]
[1758591645369,0.7363,4175.3,4175.2,0.6732]
[1758591646173,0.4293,4175.5,4175.3,0.43072]
[1758591646367,0.3044,4175.5,4175.4,2.16851025]
[1758591646878,0.4293,4175.5,4175.4,2.16851025]
[1758591647380,0.8612,4175.5,4175.4,1.76671025]
[1758591647576,0.3044,4175.5,4175.4,2.16851025]
[1758591647774,0.2226,4175.8,4175.7,0.43068]
[1758591647972,0.527,4175.8,4175.7,2.59919025]
[1758591648367,0.4319,4175.8,4175.3,3.2078]
[1758591648580,0.3044,4175.5,4175.4,1.10391]
[1758591648775,0.3044,4175.7,4175.6,0.4292]
[1758591648976,0.3044,4175.7,4175.6,0.6732]
[1758591649175,0.527,4175.7,4175.6,0.6732]
[1758591649677,0.527,4175.7,4175.6,2.01071025]
[1758591650072,0.3044,4175.7,4175.6,2.16851025]
[1758591650274,0.9765831,4175.7,4175.6,2.16851025]
[1758591650881,0.6721831,4175.7,4175.6,2.16851025]
[1758591651080,0.1255,4176.0,4175.6,2.16851025]
[1758591651081,0.1255,4176.0,4175.9,0.85986]
[1758591651384,0.1255,4176.0,4175.9,2.59917025]
[1758591651584,1.32473762,4176.0,4175.9,2.44137025]
[1758591652082,1.58243449,4176.0,4175.9,2.44137025]
[1758591653881,0.92993449,4176.0,4175.9,2.59917025]
[1758591654182,0.6519,4176.5,4176.4,0.85981]
[1758591654375,0.6519,4176.5,4176.4,1.10381]
[1758591654682,0.4293,4176.5,4176.4,42.06161]
[1758591655781,0.3475,4177.0,4176.9,0.2204]
[1758591655981,0.4319,4177.0,4176.9,2.32031025]
[1758591656673,0.5568,4177.0,4176.9,2.01071025]
[1758591656876,0.5568,4177.0,4176.9,1.76671025]
[1758591657073,0.5568,4177.0,4176.9,0.4644]
[1758591657882,0.8612,4177.0,4176.9,0.4644]
[1758591658286,0.8612,4177.0,4176.9,0.9828]
[1758591658487,0.7363,4177.0,4176.9,0.9828]
[1758591659390,0.8612,4177.0,4176.9,0.9828]
[1758591659689,0.8612,4177.0,4176.9,0.6732]
[1758591659986,0.8612,4177.0,4176.9,0.4644]
[1758591660178,0.8612,4177.0,4176.9,0.244]
[1758591660379,0.442,4176.5,4176.4,40.8]
[1758591660578,0.8713,4176.5,4176.4,1.58151025]
[1758591660782,0.8713,4176.5,4176.4,1.78491025]
[1758591660981,0.7484,4176.5,4176.4,2.32331025]
[1758591661787,0.1249,4177.0,4176.5,0.4306]
[1758591661994,0.7484,4176.9,4176.8,1.33751025]
[1758591662287,0.7484,4176.9,4176.8,1.78491025]
[1758591662492,0.7484,4176.9,4176.8,0.244]
[1758591662890,0.4293,4176.3,4176.2,44.43842]
[1758591663190,0.7484,4176.3,4176.2,46.01993025]
[1758591663390,0.7484,4176.3,4176.2,46.34713025]
[1758591663985,0.7484,4176.3,4176.2,45.34531025]
[1758591664186,0.7484,4176.3,4176.2,40.8]
[1758591664385,0.7484,4176.3,4176.2,41.044]
[1758591664596,0.7484,4176.3,4176.2,42.38151025]
[1758591664981,0.7484,4176.3,4176.2,42.70871025]
[1758591665591,0.7484,4176.3,4176.2,42.38151025]
[1758591666193,1.30195,4176.0,4175.9,0.2034]
[1758591666390,2.21514922,4176.0,4175.9,0.4474]
[1758591666789,2.21514922,4176.0,4175.7,44.0078]
[1758591666790,0.74977,4175.8,4175.7,44.0078]
[1758591667085,0.99430439,4175.8,4175.7,44.0078]
[1758591667286,1.302,4175.5,4175.4,1.33751025]
[1758591667492,2.21514168,4175.5,4175.4,1.58151025]
[1758591667685,2.21514168,4175.5,4175.4,42.38151025]
[1758591668086,2.21514168,4175.5,4175.4,41.044]
[1758591668286,2.21514168,4175.5,4175.4,40.8]
[1758591668486,2.21514168,4175.5,4175.4,41.044]
[1758591669597,2.21514168,4175.5,4174.5,3.331]
[1758591669598,0.43075,4175.0,4174.8,1.33751025]
[1758591669793,1.17917,4174.8,4174.7,1.54091025]
[1758591669987,1.42370439,4174.8,4174.7,0.2034]
[1758591670190,0.7499,4174.6,4174.5,42.13751025]
[1758591670395,0.99443439,4174.6,4174.5,42.13751025]
[1758591670598,1.42373439,4174.6,4174.5,1.78491025]
[1758591671097,1.42373439,4174.6,4174.5,0.244]
[1758591671488,0.86012,4174.4,4174.3,1.54091025]
[1758591671692,1.42375439,4174.4,4174.3,1.58151025]
[1758591671995,1.42375439,4174.4,4174.3,42.58491025]
[1758591672194,1.42375439,4174.4,4174.3,0.4474]
[1758591672398,0.43085,4174.1,4174.0,3.2078]
[1758591672697,1.42378439,4174.1,4174.0,5.20391025]
[1758591672893,0.56363439,4174.1,4174.0,5.53111025]
[1758591673193,0.56363439,4174.1,4174.0,5.65451025]
[1758591673194,0.24453439,4174.1,4174.0,5.65451025]
[1758591673589,0.99293439,4174.1,4174.0,2.32331025]
[1758591673789,0.99293439,4174.1,4174.0,2.07931025]
[1758591673986,0.56363439,4174.1,4174.0,2.32331025]
[1758591674193,0.24453439,4174.1,4174.0,2.44671025]
[1758591674498,0.77023439,4174.1,4174.0,2.32331025]
[1758591675090,0.24453439,4174.1,4174.0,2.32331025]
[1758591675291,0.24453439,4174.1,4174.0,2.44671025]
[1758591675994,3.2078,4174.7,4174.0,2.44671025]
[1758591675995,3.5269,4174.7,4174.0,2.11951025]
[1758591676197,0.76967415,4174.6,4174.5,0.7418]
[1758591676498,0.76967415,4174.6,4174.5,0.9858]
[1758591676699,0.99237415,4174.6,4174.5,0.9858]
[1758591676996,0.67478415,4174.6,4174.5,0.9858]
[1758591677202,0.43072,4175.4,4175.2,0.4423]
[1758591677396,0.43072,4175.4,4175.3,2.32971025]
[1758591677704,1.16622,4175.4,4175.3,0.4663]
[1758591677894,1.29346,4175.0,4174.9,0.2223]
[1758591678088,1.29346,4175.0,4174.9,0.4663]
[1758591678298,1.29346,4175.0,4174.9,0.244]
[1758591678997,0.8627,4175.0,4174.9,0.244]
[1758591679200,0.3041,4175.0,4174.9,0.9922]
[1758591679407,0.43075,4175.1,4174.9,0.9922]
[1758591679700,0.5249,4175.0,4174.9,0.6863]
[1758591680101,0.5249,4175.0,4174.9,0.9922]
[1758591681207,0.3041,4175.4,4175.3,0.7482]
[1758591681507,0.73481,4175.4,4175.3,2.32971025]
[1758591681698,0.95561,4175.4,4175.3,2.32971025]
[1758591682405,0.5249,4175.4,4175.3,2.32971025]
[1758591682900,3.2078,4175.7,4175.4,0.3059]
[1758591683105,4.06988,4175.7,4175.6,2.08571025]
[1758591683599,0.7355,4175.4,4174.9,0.3059]
[1758591683796,1.29345,4175.0,4174.9,0.2223]
[1758591684001,1.29345,4175.0,4174.9,0.4663]
[1758591684191,0.8627,4175.0,4174.9,0.4663]
[1758591684396,0.8627,4175.0,4174.9,0.6863]
[1758591684807,0.8627,4175.0,4174.9,0.9922]
[1758591685006,0.3041,4175.4,4174.9,1.11706]
[1758591685195,0.8627,4175.5,4175.4,0.4423]
[1758591685597,1.2934,4175.5,4175.4,0.4423]
[1758591685792,1.2934,4175.5,4175.4,0.2223]
[1758591686106,1.2934,4175.5,4174.9,0.2223]
[1758591686107,1.29345,4175.0,4174.9,0.2223]
[1758591686305,1.29345,4175.0,4174.9,0.4663]
[1758591687613,0.8627,4174.5,4174.4,45.65121025]
[1758591687907,1.16639,4173.8,4173.7,0.7482]
[1758591688108,0.1272,4173.0,4172.6,3.2078]
[1758591688410,0.8627,4173.0,4172.9,0.77216444]
[1758591688612,0.8627,4173.0,4172.9,1.01716444]
[1758591689007,0.43093,4173.4,4172.9,1.01716444]
[1758591689208,0.76561997,4173.3,4173.2,0.4423]
[1758591689411,3.2078,4173.6,4173.2,0.6873]
[1758591689711,3.7327,4173.6,4173.5,0.7482]
[1758591689899,3.7327,4173.6,4173.5,0.9932]
[1758591691304,4.18409672,4173.6,4173.5,0.6873]
[1758591691908,4.18409672,4173.6,4173.5,0.4423]
[1758591692111,0.757,4173.2,4173.1,0.4238]
[1758591692314,0.757,4173.2,4173.1,0.4654]
[1758591693504,0.757,4173.2,4173.1,0.6688]
[1758591693705,3.743,4173.6,4173.5,0.4238]
[1758591693906,3.743,4173.6,4173.5,0.9865]
[1758591694110,4.19866112,4173.6,4173.5,0.9865]
[1758591694510,4.62956112,4173.6,4173.5,0.6688]
[1758591695210,4.62956112,4173.6,4173.5,0.4654]
[1758591695408,4.62956112,4173.6,4173.5,0.245]
[1758591695608,0.85674,4173.3,4173.2,0.2204]
[1758591695813,0.85674,4173.3,4172.9,0.24436444]
[1758591695814,0.8809,4173.0,4172.9,0.24436444]
[1758591696008,0.8809,4173.0,4172.9,0.48936444]
[1758591696707,0.43095,4173.1,4172.9,0.48936444]
[1758591696708,0.4551,4173.5,4172.9,0.69276444]
[1758591697008,1.42196035,4173.4,4173.3,0.4238]
[1758591697211,1.42196035,4173.4,4173.3,0.6688]
[1758591697800,0.23404035,4173.4,4173.3,0.9865]
[1758591698011,0.76924035,4173.4,4173.3,0.9865]
[1758591698310,0.99104035,4173.4,4173.3,0.6688]
[1758591698699,0.99104035,4173.4,4173.3,0.9865]
[1758591699109,0.99110972,4173.4,4173.3,0.9865]
[1758591699511,0.23410972,4173.4,4173.3,0.9865]
[1758591699706,0.3312,4173.8,4173.3,1.41742]
[1758591699912,0.23411905,4173.7,4173.6,0.7415]
[1758591700115,0.99111905,4173.7,4173.6,0.9865]
[1758591700413,0.99111905,4173.7,4173.6,41.4688]
[1758591701108,0.99111905,4173.7,4173.6,41.045]
[1758591702312,0.99111686,4173.7,4173.6,41.045]
[1758591702610,0.757,4173.2,4173.1,3.2078]
[1758591702814,0.99109621,4173.2,4173.1,3.4528]
[1758591703018,1.31186,4173.0,4172.9,0.02396444]
[1758591703210,1.54595621,4173.0,4172.9,0.26896444]
[1758591703611,1.54595621,4173.0,4172.9,0.02396444]
[1758591703809,1.54595621,4173.0,4172.9,0.26896444]
[1758591704610,1.54590709,4173.0,4172.9,0.26896444]
[1758591705818,1.42200709,4173.0,4172.9,1.01046444]
[1758591706516,1.54590709,4173.0,4172.9,1.01046444]
[1758591707813,0.23404709,4173.0,4172.9,5.00249154]
[1758591708114,0.43096,4173.1,4173.0,0.8649]
[1758591708415,0.66497488,4173.1,4173.0,0.8649]
[1758591708808,0.86897488,4173.1,4173.0,0.8649]
[1758591709014,1.20017488,4173.1,4173.0,0.7415]
[1758591709715,0.76921488,4173.1,4173.0,0.7415]
[1758591710715,0.23401488,4173.1,4173.0,0.8649]
[1758591711013,3.6387,4173.6,4173.5,0.3177]
[1758591711216,4.29864875,4173.6,4173.5,0.9865]
[1758591711418,4.29864875,4173.6,4173.5,0.6688]
[1758591711616,4.62984875,4173.6,4173.5,0.6688]
[1758591712620,3.97714875,4173.6,4173.5,0.9865]
[1758591713520,4.19894875,4173.6,4173.5,0.9865]
[1758591713725,4.19894875,4173.6,4173.5,0.6688]
[1758591713918,0.99114875,4173.6,4173.5,0.6688]
[1758591715609,0.76934875,4173.6,4173.5,0.9865]
[1758591716626,1.67714774,4173.6,4173.5,0.9865]
[1758591716823,0.99114875,4173.6,4173.5,0.9865]
[1758591717124,1.67767867,4173.6,4173.5,0.9865]
[1758591717416,1.83547141,4175.0,4174.0,0.5472]
[1758591717417,0.43082,4174.4,4174.0,0.5472]
[1758591717620,1.18782,4174.4,4174.3,0.4238]
[1758591717817,1.87449785,4174.4,4174.3,0.4654]
[1758591718618,0.757,4174.4,4174.3,0.4654]
[1758591718824,0.757,4174.4,4174.3,1.09963]
[1758591719124,0.757,4174.4,4174.3,1.41733]
[1758591719516,0.5352,4174.4,4174.3,1.41733]
[1758591719715,0.204,4174.4,4174.3,0.9865]
[1758591719918,0.5352,4174.4,4174.3,0.9865]
[1758591720220,0.757,4174.4,4174.3,0.6678]
[1758591720416,0.43084,4174.2,4174.0,40.8]
[1758591720617,0.7498,4174.1,4174.0,40.8]
[1758591720814,0.7498,4174.1,4174.0,41.044]
[1758591721015,0.7498,4174.1,4174.0,41.3778]
[1758591721218,0.5446,4174.1,4174.0,41.3778]
[1758591721412,0.7498,4174.4,4174.3,0.4416]
[1758591721617,0.7498,4174.4,4174.3,0.244]
[1758591721820,0.75515,4174.1,4174.0,40.8]
[1758591722115,0.75515,4174.1,4174.0,41.044]
[1758591722316,0.3243,4174.1,4174.0,41.044]
[1758591722827,0.3243,4174.1,4174.0,41.3778]
[1758591723127,0.98021,4174.5,4174.4,0.2189]
[1758591723328,0.98021,4174.5,4174.4,0.4629]
[1758591723624,1.30451,4174.5,4174.4,0.4629]
[1758591723825,1.30451,4174.5,4174.4,0.244]
[1758591724427,0.8737,4174.5,4174.4,0.4629]
[1758591727227,0.8737,4174.5,4174.4,0.244]
[1758591728035,0.8737,4174.5,4174.4,1.0194]
[1758591728036,0.7498,4174.5,4174.4,1.0194]
[1758591728237,0.5446,4174.5,4174.4,1.0194]
[1758591728531,3.9576,4174.6,4174.5,0.7754]
[1758591729026,1.31031,4174.5,4174.4,1.39999346]
[1758591729225,0.7498,4174.1,4174.0,40.8]
[1758591729424,0.9838146,4174.1,4174.0,1.39999346]
[1758591730123,0.9838146,4174.1,4174.0,1.61889346]
[1758591730536,0.9838146,4174.1,4174.0,0.4629]
[1758591732928,0.9838146,4174.1,4174.0,0.2189]
[1758591733141,0.9838146,4174.1,4174.0,0.4629]
[1758591734237,0.9838146,4174.1,4174.0,0.6856]
[1758591735031,0.9838146,4174.1,4174.0,1.0194]
[1758591735226,1.4146646,4174.1,4174.0,0.244]
[1758591736138,1.4146646,4174.1,4173.4,0.43091]
[1758591736139,0.7421,4173.8,4173.4,0.43091]
[1758591736439,0.4266,4173.4,4173.3,3.2078]
[1758591736739,0.9761146,4173.4,4173.3,41.044]
[1758591737738,0.6606146,4173.4,4173.0,0.3255]
[1758591737940,0.7421,4173.4,4173.3,0.244]
[1758591738142,0.9764163,4173.4,4173.3,0.244]
[1758591738735,0.9764163,4173.4,4173.3,0.4541]
[1758591739639,0.4266,4173.2,4173.0,0.43095]
[1758591739830,0.9764163,4173.1,4173.0,0.64105]
[1758591740031,0.9764163,4173.1,4173.0,0.4541]
[1758591740434,0.9764163,4173.1,4172.8,3.2078]
[1758591740435,0.5549,4173.0,4172.8,3.2078]
[1758591740745,1.1047163,4173.0,4172.9,0.26796444]
[1758591741437,1.1047163,4173.0,4172.3,3.2078]
[1758591741438,0.7892163,4173.0,4172.3,3.2078]
[1758591741647,0.8704,4172.0,4171.9,0.64117]
[1758591741848,1.1047163,4172.0,4171.9,0.88517]
[1758591742142,0.8704,4172.0,4171.9,41.44117]
[1758591742334,0.8704,4172.0,4171.9,41.68517]
[1758591742931,1.12695103,4172.0,4171.7,3.63889]
[1758591743142,0.99850452,4171.9,4171.8,0.244]
[1758591743342,0.99850452,4171.9,4171.8,0.4541]
[1758591743543,0.99850452,4171.9,4171.8,41.4677]
[1758591743740,0.99850452,4171.9,4171.8,41.7932]
[1758591744136,0.99837257,4171.9,4171.8,41.5492]
[1758591744335,0.99837257,4171.9,4171.8,41.7932]
[1758591745234,0.2397,4171.8,4169.2,4.27705006]
[1758591745435,0.7421,4169.3,4168.6,3.98959904]
[1758591745635,0.3155,4169.1,4168.7,0.252]
[1758591745833,0.69983652,4169.0,4168.9,3.98959904]
[1758591746034,1.12643652,4169.0,4168.9,4.24259904]
[1758591746243,0.4438,4169.0,4168.9,4.24259904]
[1758591746442,0.6608,4169.0,4168.9,4.24259904]
[1758591746652,0.4438,4169.0,4168.9,4.24259904]
[1758591747241,0.4438,4169.0,4168.9,0.253]
[1758591747437,0.3155,4169.3,4168.9,3.4608]
[1758591747642,3.2078,4169.4,4169.1,3.98959904]
[1758591747834,0.3155,4169.3,4169.2,0.253]
[1758591748031,0.3155,4169.3,4169.2,41.053]
[1758591748540,0.3155,4169.3,4169.2,40.8]
[1758591748741,0.3155,4169.3,4169.2,41.053]
[1758591748938,0.3155,4169.3,4169.2,40.8]
[1758591749140,0.3155,4169.3,4169.2,41.053]
[1758591749735,0.3155,4169.3,4169.2,40.8]
[1758591749940,0.3155,4169.3,4169.2,41.052]
[1758591750341,0.4612,4169.0,4168.5,3.98959904]
[1758591750543,0.3279,4168.9,4168.6,0.252]
[1758591750743,0.5426,4168.9,4168.6,0.252]
[1758591750942,0.3279,4168.8,4168.7,40.8]
[1758591751443,0.3279,4168.8,4168.7,41.052]
[1758591752141,0.348,4169.0,4168.7,41.052]
[1758591752338,0.3279,4168.9,4168.7,41.052]
[1758591752645,0.1333,4169.0,4168.8,0.43139]
[1758591752846,0.1333,4169.0,4168.9,0.252]
[1758591753147,0.1283,4169.5,4169.0,0.43137]
[1758591753341,0.1283,4169.5,4169.2,3.98959904]
[1758591753542,0.3279,4169.4,4169.3,0.252]
[1758591754046,0.62135518,4169.4,4169.3,0.252]
[1758591754239,1.04525518,4169.4,4169.3,0.252]
[1758591754441,1.14869518,4169.4,4169.3,0.252]
[1758591754639,0.3279,4168.9,4168.8,39.25939]
[1758591754940,0.3279,4168.9,4168.8,43.50098904]
[1758591755139,0.1333,4169.0,4168.8,43.74085903]
[1758591755341,0.4612,4169.0,4168.8,43.74085903]
[1758591755745,0.4612,4169.0,4168.8,43.50098904]
[1758591756544,0.3279,4169.4,4168.8,43.06959904]
[1758591756743,0.1283,4169.5,4169.3,7.19739904]
[1758591756948,0.3279,4169.7,4169.4,0.68333]
[1758591757246,0.29330042,4169.6,4169.5,0.43132]
[1758591757549,0.62120042,4169.6,4169.5,41.48332]
[1758591758046,0.3279,4169.6,4169.5,41.48332]
[1758591758435,0.62126664,4169.6,4169.5,41.48332]
[1758591758634,0.3279,4169.6,4169.5,41.23132]
[1758591758850,0.6212686,4169.6,4169.5,41.48332]
[1758591759043,0.2933686,4169.6,4169.5,45.48332]
[1758591759242,0.3279,4169.9,4169.8,0.43128]
[1758591759545,0.3279,4169.9,4169.8,7.88067904]
[1758591759940,0.3279,4169.9,4169.8,48.68067904]
[1758591760139,0.62146084,4169.9,4169.8,48.68067904]
[1758591761750,0.29356084,4169.9,4169.8,48.68067904]
[1758591761946,0.29356084,4169.9,4169.8,48.43908]
[1758591762150,0.29356084,4169.9,4169.8,91.51367904]
[1758591762355,0.29356084,4169.9,4169.8,52.42867904]
[1758591762548,0.29356084,4169.9,4169.8,91.51367904]
[1758591765255,0.3279,4170.6,4170.4,0.43123]
[1758591765461,0.3279,4170.6,4170.5,0.251]
[1758591766052,0.1333,4171.0,4170.9,0.43118]
[1758591766253,0.1333,4171.0,4170.9,4.67177904]
[1758591766650,0.4612,4171.0,4170.9,0.68218]
[1758591766958,0.4612,4171.0,4170.9,41.48218]
[1758591768446,0.1333,4171.5,4171.4,0.43113]
[1758591768741,0.1333,4171.5,4171.4,0.68213]
[1758591768948,0.4612,4171.5,4171.4,39.51313]
[1758591769163,0.4612,4171.5,4171.4,80.31313]
[1758591771557,0.1333,4172.0,4171.4,84.31313]
[1758591771759,0.1333,4172.0,4171.9,3.63887]
[1758591771951,0.1333,4172.0,4171.9,3.88987]
[1758591772351,0.4612,4172.0,4171.9,44.68987]
[1758591774459,0.1333,4172.5,4172.4,0.43102]
[1758591774758,0.348,4172.5,4172.4,0.68202]
[1758591775055,0.2147,4172.6,4172.5,1.15221]
[1758591775248,0.2147,4172.6,4172.5,1.53411]
[1758591775448,0.5426,4172.6,4172.5,42.33411]
[1758591775650,0.7518,4173.0,4172.9,0.7212]
[1758591775852,0.7518,4173.0,4172.9,0.9712]
[1758591776050,0.7518,4173.0,4172.9,4.179]
[1758591776458,0.7518,4173.0,4172.9,44.979]
[1758591777259,1.03731391,4173.0,4172.9,44.979]
[1758591780263,0.28551391,4173.0,4172.9,44.979]
[1758591781557,0.09850244,4173.0,4172.9,49.51560683]
[1758591783360,0.7416,4174.1,4174.0,0.2142]
[1758591783560,0.7416,4174.1,4174.0,0.4642]
[1758591784153,0.7416,4174.1,4174.0,0.9771]
[1758591785365,0.7416,4173.6,4173.5,0.4225]
[1758591785660,0.7416,4173.6,4173.5,0.25]
[1758591785963,0.7416,4173.4,4173.3,0.5188]
[1758591786352,0.7416,4173.4,4173.3,0.7688]
[1758591786552,0.7416,4173.4,4173.3,0.9771]
[1758591787862,0.7416,4173.4,4173.3,0.7271]
[1758591788062,0.7416,4173.4,4173.3,39.5798]
[1758591788262,0.7416,4173.4,4173.3,39.2752]
[1758591789762,0.521,4173.4,4173.3,39.5798]
[1758591789963,0.2136,4173.5,4173.4,0.7271]
[1758591790156,0.7416,4173.5,4173.4,0.7271]
[1758591790765,0.521,4173.5,4173.4,0.7271]
[1758591790963,0.521,4173.9,4173.8,0.2142]
[1758591791159,0.7416,4173.9,4173.8,0.9771]
[1758591791862,0.521,4173.9,4173.8,41.7771]
[1758591792962,0.3074,4174.4,4173.9,0.3046]
[1758591793156,1.17242,4174.4,4174.3,0.7271]
[1758591793354,1.85135691,4174.4,4174.3,0.9761]
[1758591793558,2.13447193,4174.4,4174.3,0.9761]
[1758591793763,2.13447193,4174.4,4174.3,0.6715]
[1758591795966,2.13447193,4174.4,4174.3,0.9761]
[1758591796369,2.13447193,4174.4,4174.3,0.6715]
[1758591796563,1.70365193,4174.4,4174.3,4.1972]
[1758591796868,0.28311502,4174.4,4174.3,4.1972]
[1758591797865,0.28311502,4174.4,4174.3,44.9972]